bitfinex-derivatives/quotes_BTCF0:USTF0_20241009
["timestamp","ask_amount","ask_price","bid_price","bid_amount"]
[1728435056659,0.012,62118.0,62117.0,0.65906018]
[1728435057163,0.012,62118.0,62117.0,0.53071152]
[1728435057864,0.012,62118.0,62117.0,0.65906018]
[1728435058067,0.012,62118.0,62117.0,0.53071152]
[1728435058261,0.012,62118.0,62117.0,0.64309442]
[1728435058962,0.012,62118.0,62117.0,0.53071152]
[1728435059260,0.03852389,62124.0,62117.0,0.57853118]
[1728435059462,0.14852389,62124.0,62120.0,0.11238932]
[1728435059771,0.11,62124.0,62122.0,0.3608]
[1728435059968,0.19052,62124.0,62123.0,0.27213407]
[1728435060970,0.11,62124.0,62123.0,0.35265507]
[1728435061157,0.08421,62132.0,62128.0,0.080515]
[1728435061362,0.3608,62141.0,62128.0,0.27213407]
[1728435061363,0.441308,62134.0,62128.0,0.27213407]
[1728435061664,0.080509,62133.0,62132.0,0.080509]
[1728435061966,0.140509,62133.0,62132.0,0.35264307]
[1728435062364,0.140509,62133.0,62132.0,0.27213407]
[1728435063275,0.140509,62133.0,62132.0,0.27513407]
[1728435063469,0.140509,62133.0,62132.0,0.35564407]
[1728435063670,0.06,62133.0,62132.0,0.35564407]
[1728435063875,0.06,62133.0,62132.0,0.71644407]
[1728435064667,0.06,62133.0,62132.0,0.56704938]
[1728435064867,0.4663,62141.0,62132.0,0.63589675]
[1728435065071,0.4663,62141.0,62140.0,0.17676158]
[1728435065072,0.3608,62141.0,62140.0,0.17676158]
[1728435065262,0.3608,62141.0,62140.0,0.20323838]
[1728435065767,0.3608,62141.0,62140.0,0.29944184]
[1728435066162,0.3608,62141.0,62140.0,0.20323838]
[1728435066368,0.00241455,62143.0,62142.0,0.080497]
[1728435066568,0.190495,62143.0,62142.0,0.20323638]
[1728435066870,1.034055,62143.0,62142.0,0.12273938]
[1728435067071,1.034055,62143.0,62142.0,0.0641133]
[1728435067270,1.034055,62143.0,62134.0,0.08014088]
[1728435067271,1.824055,62143.0,62134.0,0.08014088]
[1728435067476,0.080506,62135.0,62134.0,0.08014088]
[1728435067672,0.190506,62135.0,62132.0,0.08014088]
[1728435067878,0.270508,62133.0,62132.0,0.08014088]
[1728435068076,0.390508,62133.0,62132.0,0.08014088]
[1728435068265,0.080512,62130.0,62128.0,0.08014088]
[1728435068579,0.561312,62130.0,62128.0,0.08014088]
[1728435068763,0.561312,62130.0,62117.0,0.3608]
[1728435068764,0.561312,62130.0,62126.0,0.08014088]
[1728435069263,0.19,62133.0,62131.0,0.08051]
[1728435069464,0.29,62133.0,62129.0,0.08355534]
[1728435069670,0.1,62133.0,62132.0,0.08051]
[1728435070164,0.29,62133.0,62129.0,0.08355534]
[1728435070365,0.29,62133.0,62129.0,0.00341446]
[1728435070366,0.080512,62130.0,62129.0,0.00341446]
[1728435070771,0.080512,62130.0,62129.0,0.00441446]
[1728435071165,0.014,62130.0,62129.0,0.00441446]
[1728435071367,0.124,62130.0,62129.0,0.08392746]
[1728435071674,0.11,62130.0,62129.0,0.08392746]
[1728435071874,0.11,62130.0,62129.0,0.08492746]
[1728435071875,0.124,62130.0,62129.0,0.08492746]
[1728435072074,0.124,62130.0,62129.0,0.16506834]
[1728435072274,0.124,62130.0,62129.0,0.08492746]
[1728435072679,0.124,62130.0,62129.0,0.64858172]
[1728435072975,0.124,62130.0,62129.0,0.52586834]
[1728435073182,0.124,62130.0,62129.0,0.44572746]
[1728435073684,0.124,62130.0,62129.0,0.56843004]
[1728435073685,0.014,62130.0,62129.0,0.56843004]
[1728435073870,0.014,62130.0,62129.0,0.67473004]
[1728435074379,0.014,62130.0,62129.0,0.75486863]
[1728435074577,0.014,62130.0,62129.0,0.67473004]
[1728435075090,0.1038,62140.0,62139.0,0.0805]
[1728435075284,0.2138,62140.0,62139.0,0.0805]
[1728435075782,0.11,62140.0,62139.0,0.0805]
[1728435076472,0.111,62140.0,62139.0,0.0885]
[1728435077385,0.111,62140.0,62139.0,0.0935]
[1728435078679,0.111,62140.0,62139.0,0.013]
[1728435078884,0.191499,62140.0,62139.0,0.013]
[1728435081091,0.080512,62131.0,62129.0,0.00241446]
[1728435081280,0.290112,62130.0,62129.0,0.08292746]
[1728435081590,0.290112,62130.0,62129.0,0.00241446]
[1728435081591,0.400112,62130.0,62129.0,0.00241446]
[1728435082178,0.400112,62130.0,62129.0,0.08292746]
[1728435082179,0.3196,62130.0,62129.0,0.08292746]
[1728435082379,0.11,62130.0,62129.0,0.08292746]
[1728435082584,0.2053,62138.0,62129.0,0.00341446]
[1728435082788,0.3053,62138.0,62136.0,0.080504]
[1728435082980,0.3053,62138.0,62137.0,0.080503]
[1728435083384,0.1,62138.0,62137.0,0.080503]
[1728435083880,0.1,62138.0,62134.0,0.3608]
[1728435083881,0.080506,62135.0,62134.0,0.08013207]
[1728435084082,0.390506,62135.0,62132.0,0.080508]
[1728435084294,0.080507,62134.0,62133.0,0.3608]
[1728435084486,0.200507,62134.0,62133.0,0.3608]
[1728435084792,0.400607,62134.0,62133.0,0.441308]
[1728435085385,0.402607,62134.0,62133.0,0.441308]
[1728435087089,0.404607,62134.0,62133.0,0.441308]
[1728435087788,0.124,62134.0,62133.0,0.441308]
[1728435088290,0.124,62134.0,62133.0,0.64414386]
[1728435089286,0.124,62134.0,62133.0,0.56401179]
[1728435090597,0.204507,62134.0,62133.0,0.56389702]
[1728435090790,0.204507,62134.0,62132.0,0.08039323]
[1728435090989,0.204507,62134.0,62131.0,0.080511]
[1728435091192,0.204507,62134.0,62131.0,0.16090423]
[1728435091494,0.204507,62134.0,62132.0,0.56390466]
[1728435091691,0.204507,62134.0,62132.0,0.44119323]
[1728435092085,0.202507,62134.0,62132.0,0.52170223]
[1728435092485,0.121,62134.0,62133.0,0.080508]
[1728435092686,0.121,62134.0,62133.0,0.39321643]
[1728435093187,0.001,62134.0,62133.0,0.39321643]
[1728435093387,0.001,62134.0,62133.0,0.5425576]
[1728435093689,0.001,62134.0,62133.0,0.39319664]
[1728435093890,0.0037,62145.0,62142.0,0.080496]
[1728435094190,0.180493,62145.0,62143.0,0.080495]
[1728435095184,0.180493,62145.0,62143.0,0.084495]
[1728435097095,0.180493,62145.0,62143.0,0.445295]
[1728435097487,0.180493,62145.0,62143.0,0.3648]
[1728435097693,0.180493,62145.0,62144.0,0.080494]
[1728435098905,0.180493,62145.0,62144.0,0.084494]
[1728435101387,0.1,62145.0,62144.0,0.084494]
[1728435101905,0.30675011,62149.0,62148.0,0.080489]
[1728435101906,0.0977,62149.0,62148.0,0.080489]
[1728435102102,0.2177,62149.0,62148.0,0.441289]
[1728435103201,0.2187,62149.0,62148.0,0.441289]
[1728435103802,0.17842563,62149.0,62148.0,0.441289]
[1728435104096,0.17842563,62149.0,62148.0,0.443289]
[1728435104896,0.17842563,62149.0,62148.0,0.082489]
[1728435105901,0.25891363,62149.0,62148.0,0.082489]
[1728435106406,0.17842563,62149.0,62148.0,0.082489]
[1728435106601,0.121,62149.0,62148.0,0.082489]
[1728435107803,0.001,62149.0,62148.0,0.082489]
[1728435108296,0.001,62149.0,62148.0,0.28556502]
[1728435108496,0.001,62149.0,62148.0,0.20516042]
[1728435110605,0.001,62149.0,62148.0,0.20316042]
[1728435110802,0.17982089,62158.0,62157.0,0.080477]
[1728435111100,0.17982089,62158.0,62157.0,0.3608]
[1728435111101,0.3435853,62158.0,62157.0,0.3608]
[1728435111309,0.39299108,62158.0,62157.0,0.3608]
[1728435111797,0.21838967,62158.0,62157.0,0.3608]
[1728435112004,0.28111988,62158.0,62157.0,0.3608]
[1728435112404,0.28111988,62158.0,62157.0,0.441277]
[1728435112405,0.22338967,62158.0,62157.0,0.441277]
[1728435112796,0.38388598,62158.0,62157.0,0.441277]
[1728435113104,0.13456714,62158.0,62157.0,0.441277]
[1728435113309,0.22338784,62158.0,62157.0,0.441277]
[1728435114102,0.30386384,62158.0,62157.0,0.3608]
[1728435114300,0.45936015,62158.0,62157.0,0.3638]
[1728435114507,0.45936015,62158.0,62157.0,0.3708]
[1728435115212,0.45930588,62158.0,62157.0,0.3708]
[1728435115402,0.29886384,62158.0,62157.0,0.3708]
[1728435115602,0.4593058,62158.0,62157.0,0.3708]
[1728435116312,0.29886384,62158.0,62157.0,0.3708]
[1728435117106,0.29886384,62158.0,62157.0,0.01]
[1728435118505,0.35659538,62158.0,62157.0,0.01]
[1728435118710,0.21004314,62158.0,62157.0,0.01]
[1728435120398,0.57084314,62158.0,62157.0,0.01]
[1728435122001,0.21004314,62158.0,62157.0,0.01]
[1728435122202,0.21004314,62158.0,62157.0,0.090477]
[1728435122717,0.180476,62158.0,62157.0,0.090477]
[1728435125808,0.180476,62158.0,62157.0,0.01]
[1728435125809,0.32703168,62158.0,62157.0,0.01]
[1728435129314,0.32703168,62158.0,62157.0,0.090477]
[1728435132718,0.32703285,62158.0,62157.0,0.090477]
[1728435133822,0.180476,62158.0,62157.0,0.15475689]
[1728435134727,0.1,62158.0,62157.0,0.34475689]
[1728435135125,0.1,62158.0,62157.0,0.280477]
[1728435135326,0.1,62158.0,62157.0,0.090477]
[1728435136440,0.180476,62158.0,62157.0,0.01]
[1728435136622,0.180476,62158.0,62157.0,0.07435719]
[1728435136930,0.180476,62158.0,62157.0,0.01]
[1728435137817,0.541276,62158.0,62157.0,0.01]
[1728435138030,1.623916,62158.0,62157.0,0.01]
[1728435138627,1.023916,62158.0,62157.0,0.01]
[1728435139330,1.623916,62158.0,62157.0,0.01]
[1728435139725,1.023916,62158.0,62157.0,0.01]
[1728435140437,1.623916,62158.0,62157.0,0.01]
[1728435140826,1.83656361,62158.0,62157.0,0.01]
[1728435141734,1.23656361,62158.0,62157.0,0.01]
[1728435141933,1.1704963,62158.0,62157.0,0.01]
[1728435142332,1.13107241,62158.0,62157.0,0.01]
[1728435142536,1.77049632,62158.0,62157.0,0.00153306]
[1728435142738,0.080493,62145.0,62144.0,0.0024138]
[1728435142936,0.49764942,62145.0,62144.0,0.0024138]
[1728435143140,0.080504,62137.0,62135.0,0.186705]
[1728435143332,0.080504,62137.0,62131.0,0.080511]
[1728435143333,0.27883908,62136.0,62131.0,0.080511]
[1728435143641,0.080517,62127.0,62126.0,0.080517]
[1728435143828,0.080517,62127.0,62122.0,0.00241436]
[1728435143829,0.080521,62123.0,62122.0,0.00241436]
[1728435144031,0.080521,62123.0,62113.0,0.3608]
[1728435144032,0.62427183,62123.0,62113.0,0.3608]
[1728435144229,0.22500325,62114.0,62113.0,0.3608]
[1728435144430,0.20993768,62114.0,62113.0,0.3608]
[1728435144636,0.04941518,62114.0,62113.0,0.3608]
[1728435144828,0.1605225,62115.0,62114.0,0.080533]
[1728435145023,0.03944208,62115.0,62113.0,0.3608]
[1728435145224,0.1936494,62115.0,62113.0,0.3608]
[1728435145533,0.03944208,62114.0,62113.0,0.441334]
[1728435146735,0.14421143,62121.0,62120.0,0.080525]
[1728435146938,0.18365179,62121.0,62120.0,0.080525]
[1728435147138,0.14421143,62122.0,62118.0,0.19]
[1728435147434,0.3608,62127.0,62120.0,0.080525]
[1728435147435,0.03944036,62121.0,62120.0,0.080525]
[1728435147627,0.34944036,62121.0,62117.0,0.080529]
[1728435147828,0.03944036,62120.0,62117.0,0.080529]
[1728435148037,0.13944036,62120.0,62117.0,0.080529]
[1728435148239,0.03944036,62119.0,62117.0,0.080529]
[1728435148731,0.03944036,62118.0,62117.0,0.085529]
[1728435148931,0.04023239,62119.0,62117.0,0.085529]
[1728435152738,0.16023239,62119.0,62117.0,0.085529]
[1728435152936,0.080528,62118.0,62117.0,0.085529]
[1728435153242,0.200528,62118.0,62117.0,0.085529]
[1728435154027,0.200528,62118.0,62117.0,0.001]
[1728435154240,0.200528,62118.0,62117.0,0.005]
[1728435156037,0.200528,62118.0,62117.0,0.085529]
[1728435156239,0.200528,62118.0,62117.0,0.005]
[1728435156742,0.200528,62118.0,62117.0,0.085529]
[1728435160542,0.200528,62118.0,62117.0,0.005]
[1728435165037,0.200528,62118.0,62117.0,0.085529]
[1728435167351,0.12,62118.0,62117.0,0.275529]
[1728435167650,0.0635875,62118.0,62117.0,0.275529]
[1728435168245,0.0635875,62118.0,62117.0,0.33988619]
[1728435168644,0.0635875,62118.0,62117.0,0.275529]
[1728435170048,0.0635875,62118.0,62117.0,0.636329]
[1728435170254,0.0635875,62118.0,62117.0,0.83933586]
[1728435170458,0.0635875,62118.0,62117.0,0.75906416]
[1728435170756,0.0635875,62118.0,62117.0,0.39826416]
[1728435170956,0.0635875,62118.0,62117.0,0.75906416]
[1728435173347,0.0635875,62118.0,62117.0,0.90845068]
[1728435174863,0.0635875,62118.0,62117.0,0.75906416]
[1728435175052,0.0635875,62118.0,62117.0,0.85470261]
[1728435175253,0.0665875,62118.0,62117.0,0.85469931]
[1728435175555,0.0665875,62118.0,62117.0,0.85069931]
[1728435176356,0.0685875,62118.0,62117.0,0.85069931]
[1728435176762,0.0695875,62118.0,62117.0,0.85069931]
[1728435177363,0.0715875,62118.0,62117.0,0.85169931]
[1728435177559,0.0725875,62118.0,62117.0,0.85169931]
[1728435180665,0.0725875,62118.0,62117.0,0.75506416]
[1728435181162,0.0725875,62118.0,62117.0,0.66169931]
[1728435181470,0.0725875,62118.0,62117.0,0.48453516]
[1728435181471,0.1531155,62118.0,62117.0,0.48453516]
[1728435182056,0.1531155,62118.0,62117.0,0.12373516]
[1728435184661,0.0725875,62118.0,62117.0,0.85169931]
[1728435184866,0.0725875,62118.0,62117.0,0.75506416]
[1728435186061,0.0725875,62118.0,62117.0,0.632329]
[1728435191155,0.0725875,62118.0,62117.0,0.71284902]
[1728435191356,0.1531155,62118.0,62117.0,0.442329]
[1728435192057,0.1531155,62118.0,62117.0,0.50674734]
[1728435192371,0.1531155,62118.0,62117.0,0.50674742]
[1728435192574,0.1531155,62118.0,62117.0,0.442329]
[1728435192869,0.1531155,62118.0,62117.0,0.50675018]
[1728435193064,0.0725875,62118.0,62117.0,0.62675018]
[1728435193271,0.0725875,62118.0,62117.0,0.562329]
[1728435193968,0.03229273,62118.0,62117.0,0.68506688]
[1728435194368,0.23282073,62118.0,62117.0,0.5811619]
[1728435194573,0.23282073,62118.0,62117.0,0.48453788]
[1728435196267,0.23282073,62118.0,62117.0,0.48454322]
[1728435196574,0.11282073,62118.0,62117.0,0.56507653]
[1728435198567,0.11282073,62118.0,62117.0,0.20427653]
[1728435200871,0.11282073,62118.0,62117.0,0.08153331]
[1728435201071,0.25947112,62118.0,62117.0,0.001]
[1728435204673,1.10323112,62118.0,62117.0,0.001]
[1728435204873,0.62027112,62118.0,62117.0,0.001]
[1728435205088,1.70323112,62118.0,62117.0,0.001]
[1728435205374,1.70323112,62118.0,62100.0,0.00991526]
[1728435205375,0.08055,62101.0,62100.0,0.00991526]
[1728435205568,0.080559,62095.0,62093.0,0.080559]
[1728435205768,0.080559,62094.0,62093.0,0.080559]
[1728435205967,0.27946815,62094.0,62093.0,0.080559]
[1728435206169,0.42395427,62094.0,62093.0,0.080559]
[1728435206373,0.42395716,62094.0,62093.0,0.080559]
[1728435206668,0.27947104,62094.0,62093.0,0.080559]
[1728435207276,0.28047104,62094.0,62093.0,0.094559]
[1728435207471,0.08991204,62094.0,62093.0,0.094559]
[1728435207862,0.17660425,62097.0,62093.0,0.5508]
[1728435208174,0.23316789,62096.0,62095.0,0.080558]
[1728435208366,0.08890386,62096.0,62095.0,0.080558]
[1728435208565,0.14422122,62096.0,62095.0,0.080558]
[1728435208868,0.08890386,62096.0,62095.0,0.080558]
[1728435209176,0.001,62097.0,62096.0,0.080556]
[1728435209871,0.002,62097.0,62096.0,0.080556]
[1728435210364,0.001,62097.0,62096.0,0.088556]
[1728435212567,0.002,62097.0,62096.0,0.097556]
[1728435215172,0.00241603,62108.0,62096.0,1.58978672]
[1728435215378,0.11241603,62108.0,62107.0,0.270542]
[1728435216184,0.25908092,62108.0,62107.0,0.270542]
[1728435216371,0.14766489,62108.0,62107.0,0.270542]
[1728435216567,0.14766489,62108.0,62107.0,0.631342]
[1728435216966,0.09489028,62108.0,62107.0,0.631342]
[1728435217678,0.30436159,62109.0,62107.0,1.714382]
[1728435217866,0.17620864,62113.0,62108.0,0.19]
[1728435217867,0.14417191,62110.0,62108.0,0.19]
[1728435218072,0.14417191,62112.0,62110.0,0.080538]
[1728435218269,0.45132,62119.0,62112.0,0.080535]
[1728435218270,0.14422766,62114.0,62112.0,0.080535]
[1728435218480,0.14422766,62114.0,62113.0,0.19]
[1728435218987,0.14422766,62114.0,62113.0,0.270534]
[1728435219571,0.16018968,62114.0,62113.0,0.19]
[1728435219772,0.16018968,62115.0,62114.0,0.080533]
[1728435219976,0.16018968,62116.0,62114.0,0.19]
[1728435220173,0.16018968,62116.0,62115.0,0.270532]
[1728435220378,0.17620864,62121.0,62115.0,0.270532]
[1728435220571,0.17620864,62121.0,62120.0,0.631325]
[1728435221078,0.17620864,62123.0,62121.0,0.080524]
[1728435221276,0.17620864,62123.0,62122.0,0.080523]
[1728435222973,0.18020864,62123.0,62122.0,0.080523]
[1728435223173,0.22963919,62123.0,62122.0,0.080523]
[1728435223380,0.05343055,62123.0,62122.0,0.080523]
[1728435223776,0.05743055,62123.0,62122.0,0.081523]
[1728435223970,0.008,62123.0,62122.0,0.081523]
[1728435225075,0.004,62123.0,62122.0,0.081523]
[1728435225278,0.005,62123.0,62122.0,0.081523]
[1728435225677,0.005,62123.0,62122.0,0.080523]
[1728435226074,0.004,62123.0,62122.0,0.080523]
[1728435226286,0.005,62123.0,62122.0,0.080523]
[1728435226778,0.005,62123.0,62122.0,0.441323]
[1728435226779,0.001,62123.0,62122.0,0.441323]
[1728435226980,0.005,62123.0,62122.0,0.080523]
[1728435227182,0.005,62123.0,62122.0,0.441323]
[1728435227886,0.004,62123.0,62122.0,0.441323]
[1728435228078,0.005,62123.0,62122.0,0.441323]
[1728435228886,0.005,62123.0,62122.0,0.080523]
[1728435229087,0.005,62123.0,62122.0,0.441323]
[1728435230678,0.115,62123.0,62122.0,0.441323]
[1728435231186,0.16443054,62123.0,62122.0,0.441323]
[1728435234180,0.22218989,62123.0,62122.0,0.441323]
[1728435236681,0.22218989,62123.0,62122.0,0.631323]
[1728435238197,0.22218989,62123.0,62122.0,0.441323]
[1728435238492,0.22218989,62123.0,62122.0,0.631323]
[1728435239297,0.115,62123.0,62122.0,0.631323]
[1728435240479,0.115,62123.0,62122.0,1.714243]
[1728435240480,0.005,62123.0,62122.0,1.714243]
[1728435240677,0.0037,62134.0,62122.0,1.714243]
[1728435240678,0.0037,62134.0,62133.0,0.080508]
[1728435240884,0.0022,62142.0,62133.0,0.802108]
[1728435241090,0.0992,62146.0,62141.0,0.631298]
[1728435241292,0.0992,62146.0,62141.0,0.441298]
[1728435241293,0.32896874,62146.0,62141.0,0.441298]
[1728435241503,0.080496,62143.0,62141.0,0.3608]
[1728435241676,0.080496,62143.0,62139.0,0.3608]
[1728435241677,0.080499,62140.0,62139.0,0.3608]
[1728435241887,0.080499,62140.0,62134.0,0.3608]
[1728435241888,0.080506,62135.0,62134.0,0.3608]
[1728435242093,0.190506,62135.0,62134.0,0.3608]
[1728435243085,0.190506,62135.0,62134.0,0.3618]
[1728435243086,0.195506,62135.0,62134.0,0.3618]
[1728435243492,0.195506,62135.0,62134.0,0.001]
[1728435244187,0.198506,62135.0,62134.0,0.002]
[1728435246100,0.307406,62135.0,62134.0,0.002]
[1728435248387,0.427406,62135.0,62134.0,0.002]
[1728435250085,0.528206,62135.0,62134.0,0.002]
[1728435252185,0.889006,62135.0,62134.0,0.002]
[1728435253792,0.889006,62135.0,62124.0,0.00241426]
[1728435253793,0.080519,62125.0,62124.0,0.00241426]
[1728435253997,0.11,62125.0,62124.0,0.08293426]
[1728435254296,0.2171905,62125.0,62123.0,0.12]
[1728435254490,0.11,62125.0,62124.0,0.1062]
[1728435254799,0.2201793,62125.0,62124.0,0.1062]
[1728435254994,0.2201793,62125.0,62124.0,0.18672]
[1728435255198,0.2201793,62125.0,62124.0,0.08052]
[1728435255393,0.080521,62123.0,62120.0,0.080525]
[1728435255597,0.20882425,62121.0,62120.0,0.080525]
[1728435255799,0.31600355,62121.0,62120.0,0.080525]
[1728435256002,0.1071793,62121.0,62120.0,0.080525]
[1728435256397,0.1071846,62121.0,62120.0,0.081525]
[1728435257104,0.1091846,62121.0,62120.0,0.081525]
[1728435257692,0.31806571,62121.0,62120.0,0.081525]
[1728435258289,0.31806571,62121.0,62120.0,0.442325]
[1728435258491,0.05143103,62121.0,62120.0,0.442325]
[1728435259202,0.05142591,62121.0,62120.0,0.442325]
[1728435261197,0.002,62121.0,62120.0,0.442325]
[1728435262789,0.002,62121.0,62120.0,0.50664627]
[1728435262988,0.002,62121.0,62120.0,0.442325]
[1728435264504,0.080508,62133.0,62120.0,1.525245]
[1728435264704,0.47211452,62135.0,62129.0,0.19]
[1728435264705,0.36321452,62135.0,62129.0,0.19]
[1728435264902,0.47321452,62135.0,62134.0,0.080507]
[1728435265798,0.55372052,62135.0,62134.0,0.080507]
[1728435266004,0.19292052,62135.0,62134.0,0.080507]
[1728435266212,0.00241452,62135.0,62134.0,0.270507]
[1728435266396,0.1042,62143.0,62142.0,0.080497]
[1728435266597,0.03891595,62143.0,62142.0,0.080497]
[1728435267499,0.01,62143.0,62142.0,0.080497]
[1728435267710,0.01,62143.0,62142.0,0.088497]
[1728435268102,0.451295,62143.0,62142.0,0.008]
[1728435268319,0.641295,62143.0,62142.0,0.008]
[1728435268496,1.124055,62143.0,62137.0,0.3608]
[1728435268701,0.270502,62138.0,62137.0,0.3608]
[1728435268901,0.380502,62138.0,62137.0,0.3608]
[1728435269197,0.42992361,62138.0,62137.0,0.3608]
[1728435269397,0.48767237,62138.0,62137.0,0.3608]
[1728435269611,0.48767237,62138.0,62137.0,0.3638]
[1728435269902,0.48767237,62138.0,62137.0,0.3778]
[1728435270104,0.48767237,62138.0,62137.0,0.017]
[1728435270499,0.48767237,62138.0,62137.0,0.022]
[1728435271409,0.29767237,62138.0,62137.0,0.022]
[1728435272101,0.21717037,62138.0,62137.0,0.292503]
[1728435273913,0.21716969,62138.0,62137.0,0.292503]
[1728435274502,0.10716969,62138.0,62137.0,0.292503]
[1728435274710,0.10716969,62138.0,62137.0,0.653303]
[1728435275511,0.04942093,62138.0,62137.0,0.292503]
[1728435276409,0.441295,62143.0,62139.0,0.080499]
[1728435276614,0.551295,62143.0,62139.0,0.080499]
[1728435277509,0.552295,62143.0,62139.0,0.091499]
[1728435278410,0.552295,62143.0,62141.0,0.080498]
[1728435279016,0.080499,62140.0,62139.0,0.011]
[1728435279210,0.310499,62140.0,62139.0,0.011]
[1728435279404,0.310499,62140.0,62139.0,0.008]
[1728435279610,0.080504,62137.0,62135.0,0.080505]
[1728435279913,0.080508,62134.0,62131.0,0.08051]
[1728435280111,0.080508,62134.0,62125.0,0.3608]
[1728435280112,0.4808,62133.0,62125.0,0.3608]
[1728435280313,0.080517,62126.0,62125.0,0.3608]
[1728435280515,0.180517,62126.0,62125.0,0.3608]
[1728435282713,0.188517,62126.0,62125.0,0.3618]
[1728435283019,0.192517,62126.0,62125.0,0.001]
[1728435283818,0.080519,62125.0,62122.0,0.080522]
[1728435284125,0.180519,62125.0,62122.0,0.270522]
[1728435284311,0.28771314,62125.0,62122.0,0.23509262]
[1728435284506,0.18771514,62124.0,62122.0,0.23509262]
[1728435284727,0.10719414,62123.0,62122.0,0.23509262]
[1728435285021,0.21719414,62123.0,62122.0,0.23509262]
[1728435285920,0.10719414,62123.0,62122.0,0.23509262]
[1728435286219,0.35920465,62136.0,62133.0,0.080508]
[1728435286413,0.35920465,62136.0,62133.0,0.270508]
[1728435286616,0.46920465,62136.0,62133.0,0.270508]
[1728435286921,0.29481977,62136.0,62134.0,0.080507]
[1728435289210,0.05774981,62135.0,62134.0,0.080507]
[1728435289413,0.16774981,62135.0,62134.0,0.080507]
[1728435290216,0.16774981,62135.0,62134.0,0.081507]
[1728435290414,0.16774981,62135.0,62134.0,0.05445631]
[1728435290616,0.05774981,62135.0,62134.0,0.05445631]
[1728435291216,0.10716873,62135.0,62134.0,0.05445631]
[1728435291421,0.21129992,62136.0,62135.0,0.080506]
[1728435291626,0.00241477,62136.0,62135.0,0.080506]
[1728435292729,0.00241477,62136.0,62135.0,0.441306]
[1728435292922,0.001,62136.0,62135.0,0.441306]
[1728435294432,0.111,62136.0,62135.0,0.441306]
[1728435296116,0.001,62136.0,62135.0,0.441306]
[1728435298431,0.001,62136.0,62135.0,0.42630599]
[1728435298733,0.001,62136.0,62135.0,0.06550599]
[1728435300631,0.001,62136.0,62135.0,0.16470599]
[1728435301823,0.001,62136.0,62135.0,0.19401735]
[1728435302928,0.001,62136.0,62135.0,0.16470599]
[1728435305234,0.001,62136.0,62135.0,0.06550599]
[1728435306032,0.080507,62135.0,62133.0,0.3608]
[1728435306336,0.080507,62134.0,62133.0,0.3608]
[1728435306531,0.47155662,62134.0,62128.0,0.31653445]
[1728435306733,0.17324962,62133.0,62128.0,0.31653445]
[1728435306935,0.17324962,62132.0,62131.0,0.08051]
[1728435307238,0.29324962,62132.0,62131.0,0.08051]
[1728435308332,0.29325347,62132.0,62131.0,0.08051]
[1728435308734,0.29325347,62132.0,62131.0,0.08151]
[1728435309332,0.29625347,62132.0,62131.0,0.08251]
[1728435310037,0.08052,62125.0,62117.0,0.19]
[1728435310237,0.3608,62120.0,62119.0,0.080526]
[1728435310440,0.53405347,62120.0,62119.0,0.080526]
[1728435310628,0.0037,62130.0,62129.0,0.080513]
[1728435310831,0.003,62132.0,62131.0,0.080511]
[1728435311440,0.003,62132.0,62130.0,0.08826791]
[1728435311829,0.003,62132.0,62131.0,0.080511]
[1728435312239,0.1056,62140.0,62137.0,0.080503]
[1728435312436,0.2119,62140.0,62137.0,0.080503]
[1728435312642,0.2119,62140.0,62139.0,0.19]
[1728435312934,0.27797473,62140.0,62139.0,0.19]
[1728435313241,0.080503,62137.0,62136.0,0.19]
[1728435316239,0.080503,62137.0,62136.0,0.204]
[1728435316554,0.080503,62137.0,62136.0,0.214]
[1728435318737,0.080503,62137.0,62136.0,0.024]
[1728435319139,0.200503,62137.0,62136.0,0.024]
[1728435319333,0.080513,62129.0,62127.0,0.04824556]
[1728435319546,0.185116,62128.0,62125.0,0.12876256]
[1728435319745,0.080516,62127.0,62125.0,0.080517]
[1728435319951,0.1046,62128.0,62124.0,0.23824556]
[1728435319952,0.080519,62125.0,62124.0,0.23824556]
[1728435320747,0.190519,62125.0,62124.0,0.23824556]
[1728435320949,0.080519,62125.0,62124.0,0.19]
[1728435321158,0.080521,62123.0,62122.0,0.04824556]
[1728435321544,0.080521,62123.0,62120.0,0.06432741]
[1728435321545,0.080524,62121.0,62120.0,0.04824556]
[1728435321741,0.12995477,62121.0,62118.0,0.080527]
[1728435321946,0.04943077,62120.0,62118.0,0.080527]
[1728435322460,0.04943077,62119.0,62118.0,0.080527]
[1728435323160,0.10719024,62119.0,62118.0,0.080527]
[1728435323949,0.04943077,62119.0,62118.0,0.080527]
[1728435324855,0.10719024,62119.0,62118.0,0.080527]
[1728435325250,0.10919024,62119.0,62118.0,0.080527]
[1728435325558,0.080532,62115.0,62112.0,0.21943395]
[1728435325751,0.12996277,62115.0,62112.0,0.29996895]
[1728435326149,0.18772224,62115.0,62112.0,0.29996895]
[1728435326463,0.10719024,62115.0,62112.0,0.19]
[1728435326649,0.10719024,62115.0,62114.0,0.441333]
[1728435326853,0.04943077,62115.0,62114.0,0.441333]
[1728435327350,0.10719024,62115.0,62114.0,0.441333]
[1728435327551,0.10719024,62115.0,62114.0,0.080533]
[1728435328158,0.11119024,62115.0,62114.0,0.080533]
[1728435328550,0.20892454,62117.0,62114.0,0.2032721]
[1728435328748,0.20892454,62117.0,62116.0,0.08027731]
[1728435328954,0.20892454,62117.0,62116.0,0.20301641]
[1728435329553,0.28945354,62117.0,62115.0,0.27027731]
[1728435329855,0.30445354,62117.0,62116.0,0.001]
[1728435330451,0.095529,62117.0,62116.0,0.08127731]
[1728435330652,0.094529,62117.0,62116.0,0.001]
[1728435331048,0.014,62117.0,62116.0,0.20426674]
[1728435331265,0.0037,62125.0,62124.0,0.08052]
[1728435331572,0.4651,62135.0,62124.0,0.08052]
[1728435331573,0.4688,62135.0,62126.0,0.080517]